Cogmind - Beta 13 @@@ ROGUE MODE // 2024.04.08 @ 20:41:52 Player: bruderalex Result: Destroyed by YL-WYP(R) with Subdweller Machine Gun Performance ------------- Evolutions (0) 0 Regions Visited (3) 600 Robots Destroyed (20) 100 Value Destroyed (586) 586 Prototype IDs (11) 220 Alien Tech Used (0) 0 Bonus (51) 51 TOTAL SCORE: 1557 Bonus ------- Follower Combat Kills 51 Cogmind --------- Core Integrity 0/250 Matter 286/300 Energy 200/200 System Corruption 0% Temperature Cool (0) Movement Treading (160) Location -10/Subcaves Parts ------- > --- POWER (1) -------- Subdweller Power Source > --- PROPULSION (2) --- Light Treads > --- UTILITY (2) ------ Small Storage Unit Experimental Sensor Array > --- WEAPON (2) ------- Subdweller Machine Gun Heavy Battle Rifle > --- INVENTORY (8) ---- Ion Engine Aluminum Leg Aluminum Leg Utility Shielding Bomb Drone Bay EM Pulse Gun Assault Rifle Peak State ------------ > --- POWER ------------ Subdweller Power Source > --- PROPULSION ------- Light Treads Light Treads > --- UTILITY ---------- Small Storage Unit Experimental Sensor Array > --- WEAPON ----------- Subdweller Machine Gun Heavy Battle Rifle > --- INVENTORY -------- Ion Engine Aluminum Leg Aluminum Leg Utility Shielding Bomb Drone Bay EM Pulse Gun Assault Rifle [Rating: 22] Favorites ----------- Power Ion Engine Engine Ion Engine Propulsion Light Treads Treads Light Treads Utility Small Storage Unit Device Experimental Sensor Array Storage Small Storage Unit Protection Utility Shielding Weapon Small Laser Energy Gun Small Laser Ballistic Gun Assault Rifle Build | -11 -10 -10 -10 ------- Run | Yrd Mat Min Sub Slots Evolved . | . . . . Power . | . . . . Propulsion . | . . . . Utility . | . . . . Weapon . | . . . . Parts Attached 16 | 7 1 3 5 Power 4 | 1 . 1 2 Engine 4 | 1 . 1 2 Core . | . . . . Reactor . | . . . . Propulsion 4 | 2 . 1 1 Treads 4 | 2 . 1 1 Leg . | . . . . Wheel . | . . . . Hover . | . . . . Flight . | . . . . Utility 3 | 1 1 1 . Device 1 | . . 1 . Storage 1 | 1 . . . Processor . | . . . . Hackware . | . . . . Protection 1 | . 1 . . Artifact . | . . . . Weapon 5 | 3 . . 2 Energy Gun 2 | 2 . . . Energy Cannon . | . . . . Ballistic Gun 3 | 1 . . 2 Ballistic Cannon . | . . . . Launcher . | . . . . Special Weapon . | . . . . Impact Weapon . | . . . . Slashing Weapon . | . . . . Piercing Weapon . | . . . . Special Melee Weapon . | . . . . Unidentified Prototypes 1 | . . 1 . Parts Lost 3 | . . 2 1 Power 1 | . . 1 . Propulsion 2 | . . 1 1 Utility . | . . . . Weapon . | . . . . Highest Loss Streak 2 | . . 2 1 To Critical Strikes . | . . . . Average Slot Usage (%) 99 | . 98 99 100 Engine 13 | . 14 13 14 Treads 28 | . 28 28 28 Device 11 | . . 11 14 Storage 14 | . 14 14 14 Protection 2 | . 12 2 . Energy Gun 12 | . 14 14 11 Ballistic Gun 15 | . 14 14 16 Naked Turns . | . . . . Heaviest Build 19 | 13 14 14 19 Greatest Support 40 | 40 40 40 40 Greatest Overweight (x) . | . . . . Average Overweight (x) . | . . . . Largest Inventory Capacity 8 | 8 8 8 8 Average Capacity 7 | 6 8 8 8 Most Carried 8 | 4 8 8 8 Average Carried 7 | 1 6 7 8 Final Capacity 8 | 8 8 8 8 Final Carried 8 | 4 8 8 8 Class Distribution -------------------- 100% | Mutant Dominant Class ---------------- Mutant | -10/Materials Mutant | -10/Mines Mutant | -10/Subcaves Resources | -11 -10 -10 -10 ----------- Run | Yrd Mat Min Sub Matter Collected 560 | 254 86 89 131 Remotely . | . . . . Salvage Created 640 | . 201 173 266 Parts 45 | . 14 7 24 Haulers Intercepted . | . . . . Recyclers Shooed . | . . . . Parts Field Recycled . | . . . . Retrieved Matter . | . . . . Parts Self-Destructed 20 | . . . 20 Prevented . | . . . . Kills | -11 -10 -10 -10 ------- Run | Yrd Mat Min Sub Combat Hostiles Destroyed 20 | . 7 4 9 Guns 20 | . 7 4 9 Classes Destroyed 4 | . 2 . 2 Swarmer 7 | . 3 . 4 Grunt 8 | . 4 4 . Sentry 1 | . . . 1 Subdweller 4 | . . . 4 Best Kill Streak 3 | . 3 1 3 Combat Bots Only 3 | . 3 1 3 Max Kills in Single Turn 1 | . 1 1 1 Gunslinging . | . . . . Exploded . | . . . . Melee . | . . . . Uniques/NPCs Destroyed . | . . . . Combat | -11 -10 -10 -10 -------- Run | Yrd Mat Min Sub Hostile Shots Fired 141 | . 35 37 69 Missed 49 | . 11 12 26 Damage Taken 1236 | . 248 357 631 Core 266 | . 59 67 140 Absorbed by Shields . | . . . . Core Remaining (%) 100 | 100 . . . Volleys Fired 73 | . 24 23 26 Largest 2 | . 2 2 2 Hottest 73 | . 60 60 73 Shots Fired 146 | . 48 46 52 Gun 146 | . 48 46 52 Cannon . | . . . . Launcher . | . . . . Special . | . . . . Kinetic 84 | . 24 23 37 Thermal 62 | . 24 23 15 Explosive . | . . . . Electromagnetic . | . . . . Robot Hit Streak 25 | . 6 9 25 Robot Miss Streak 4 | . 2 1 4 Penetration Max . | . . . . Secondary Targets 1 | . . . 1 Max Gunslinging Chain 1 | . . . 1 Shots Hit Robots 108 | . 31 36 41 Core Hits 40 | . 14 10 16 Critical Kills . | . . . . Critical Parts Destroyed . | . . . . Critical Strikes . | . . . . Melee Attacks . | . . . . Impact . | . . . . Slashing . | . . . . Piercing . | . . . . Sneak Attacks . | . . . . Combat Hostiles . | . . . . Follow-up Attacks . | . . . . Damage Inflicted 1494 | . 381 426 687 Guns 1484 | . 376 421 687 Cannons . | . . . . Explosions . | . . . . Melee . | . . . . Ramming 10 | . 5 5 . Kinetic 1005 | . 204 243 558 Thermal 479 | . 172 178 129 Explosive . | . . . . Electromagnetic . | . . . . Impact . | . . . . Slashing . | . . . . Piercing . | . . . . Highest Corruption . | . . . . Average Corruption . | . . . . Corruption Purged . | . . . . Corruption Blocked . | . . . . Overload Shots . | . . . . Overflow Damage . | . . . . Projectiles . | . . . . Explosions . | . . . . Melee . | . . . . Knockbacks . | . . . . Impact . | . . . . Kinetic . | . . . . Secondary . | . . . . Self-Inflicted Damage . | . . . . Shots . | . . . . Rammed 10 | . 6 4 . Targets Rammed 10 | . 6 4 . Kicked . | . . . . Crushed . | . . . . Highest Temperature 70 | . 54 70 11 Average Temperature 28 | . 27 30 9 Received Heat Transfer 510 | . 90 204 216 Siege Activations . | . . . . Robots Corrupted . | . . . . Combat Hostiles . | . . . . Parts Fried . | . . . . Impact Corruptions . | . . . . Robots Melted . | . . . . Combat Hostiles . | . . . . Parts Melted 1 | . . 1 . Heat Transferred 1100 | . 400 400 300 Parts Sabotaged . | . . . . Parts Stolen . | . . . . Parts Stripped . | . . . . Power Chain Reactions . | . . . . Alert | -11 -10 -10 -10 ------- Run | Yrd Mat Min Sub Peak Influence 185 | . 185 167 . Initial 72 | . . 72 . Average 53 | . 63 53 . Maximum Alert Level . | . . . . Low Security (%) 100 | 100 100 100 . Level 1 . | . . . . Level 2 . | . . . . Level 3 . | . . . . Level 4 . | . . . . Level 5 . | . . . . High Security . | . . . . Max Security . | . . . . Squads Dispatched 1 | . 1 . . Investigation 1 | . 1 . . Extermination . | . . . . Reinforcement . | . . . . Assault . | . . . . Garrison . | . . . . Intercept . | . . . . Searches Triggered . | . . . . Construction Impeded . | . . . . Haulers Reinforced . | . . . . Active Scanning Responses . | . . . . Cargo Convoy Interrupts . | . . . . Stealth | -11 -10 -10 -10 --------- Run | Yrd Mat Min Sub Distress Signals 1 | . 1 . . Communications Jammed . | . . . . Distress Signals . | . . . . Times Spotted 51 | . 11 5 35 Peak Tracking Total 5 | . 5 2 4 Tactical Retreats 4 | . . 1 3 Traps | -11 -10 -10 -10 ------- Run | Yrd Mat Min Sub Traps Triggered 4 | . 1 . 3 Indirectly . | . . . . Trap Hack Attempts . | . . . . Triggered . | . . . . Disarmed . | . . . . Reprogrammed . | . . . . Reused . | . . . . Traps Extracted . | . . . . Installed . | . . . . Triggered . | . . . . Machines | -11 -10 -10 -10 ---------- Run | Yrd Mat Min Sub Machines Disabled 1 | . . . 1 Max in Single Turn 1 | . . . 1 Machines Repaired . | . . . . Machines Dismantled . | . . . . Machines Sabotaged . | . . . . Overloaded Fab Kills . | . . . . Hacking | -11 -10 -10 -10 --------- Run | Yrd Mat Min Sub Machines Accessed 2 | . . 1 1 Terminals . | . . . . Fabricators . | . . . . Repair Stations . | . . . . Recycling Units . | . . . . Scanalyzers . | . . . . Garrison Access . | . . . . Total Hacks 10 | . . 1 9 Successful 10 | . . 1 9 Failed . | . . . . Catastrophic . | . . . . Database Lockouts . | . . . . Manual 1 | . . . 1 Terminals . | . . . . Fabricators . | . . . . Repair Stations . | . . . . Recycling Units . | . . . . Scanalyzers . | . . . . Garrison Access . | . . . . Terminal Hacks 10 | . . 1 9 Record 8 | . . . 8 Open Door 1 | . . 1 . Derelict Proto ID Bank 1 | . . . 1 Fabricator Hacks . | . . . . Repair Station Hacks . | . . . . Recycling Unit Hacks . | . . . . Scanalyzer . | . . . . Garrison Access Hacks . | . . . . Unauthorized Hacks . | . . . . Terminals . | . . . . Fabricators . | . . . . Repair Stations . | . . . . Recycling Units . | . . . . Scanalyzers . | . . . . Garrison Access . | . . . . Data Cores Recovered . | . . . . Used . | . . . . Hacking Detections . | . . . . Full Trace Events . | . . . . Feedback Events . | . . . . Feedback Blocked . | . . . . Robot Schematics Acquired . | . . . . Robots Built . | . . . . Authchips . | . . . . Time . | . . . . Total Robot Build Rating . | . . . . Part Schematics Acquired . | . . . . Parts Built . | . . . . Authchips . | . . . . Time . | . . . . Total Part Build Rating . | . . . . Parts Repaired . | . . . . Time . | . . . . Parts Recycled . | . . . . Recycled Matter . | . . . . Retrieved Matter . | . . . . Retrieved Components . | . . . . Parts Scanalyzed . | . . . . Part Schematics Acquired . | . . . . Parts Damaged . | . . . . Bothacking | -11 -10 -10 -10 ------------ Run | Yrd Mat Min Sub Used RIF Installer . | . . . . Robots Hacked . | . . . . Non-combat . | . . . . Combat . | . . . . Robot Hacks Applied . | . . . . Relay Couplers Released . | . . . . Fabnet Peak Effective % . | . . . . Robots Rewired . | . . . . Allies Hacked . | . . . . Hacks Repelled . | . . . . Allies | -11 -10 -10 -10 -------- Run | Yrd Mat Min Sub Total Allies 3 | . . 3 . Largest Group 3 | . . 3 3 Highest-Rated Group 40 | . . 40 40 Highest-Rated Ally 16 | . . 16 16 Total Orders . | . . . . Ally Attacks 15 | . . . 15 Total Damage 150 | . . . 150 Kills 4 | . . . 4 Allies Corrupted . | . . . . Allies Melted . | . . . . Intel | -11 -10 -10 -10 ------- Run | Yrd Mat Min Sub Robot Analysis Total . | . . . . Derelict Logs Recovered 5 | . . 3 2 Drone Launches . | . . . . Drone Recoveries . | . . . . Exploration | -11 -10 -10 -10 ------------- Run | Yrd Mat Min Sub Turns Passed 3143 | 92 382 1036 1633 Spaces Moved 1746 | 51 169 586 940 Core 3 | 3 . . . Treads 1743 | 48 169 586 940 Legs . | . . . . Wheels . | . . . . Hover . | . . . . Flight . | . . . . Fastest Speed 50 | 50 160 160 160 Average Speed 159 | 153 160 160 160 Slowest Speed 160 | 160 160 160 160 Overloaded Moves . | . . . . Propulsion Burnouts . | . . . . Robots Hopped . | . . . . Cave-ins Triggered . | . . . . Exploration Rate (%) 47 | 5 30 99 55 Regions Visited 3 Branch Regions 2 Pre-discovered Areas 1 | . . 1 . Known Exits Taken . | . . . . Unknown Exits Taken 3 | 1 1 1 . Scrap Searched 10 | . . 2 8 Spaces Dug . | . . . . Terrain Destroyed . | . . . . Melee . | . . . . Projectile . | . . . . AOE . | . . . . Terrain Rammed . | . . . . Walls Destroyed . | . . . . Machines Disabled . | . . . . Actions | -11 -10 -10 -10 --------- Run | Yrd Mat Min Sub Total 1942 | 61 230 637 1014 Wait 78 | . 25 15 38 Move 1743 | 50 168 585 940 Hop . | . . . . Pick Up 13 | 4 5 4 . Fast Attach 9 | 6 1 . 2 Attach 2 | . . 2 . Detach . | . . . . Swap 5 | 1 . 1 3 Drop 9 | . 1 3 5 Fire 73 | . 24 23 26 Melee . | . . . . Ram . | . . . . Kick . | . . . . Crush 10 | . 6 4 . Escape Stasis . | . . . . Rewire . | . . . . Trap . | . . . . Miscellaneous . | . . . . Route ------- -11/Scrapyard -10/Materials -10/Mines (discovered 4 exits: [*Mat x2] / [*Exi] / *Sub) -10/Subcaves (discovered 3 exits: [*Mat x2] / [*Rec]) History --------- Turn | Location | Event 40 | -11/Scrapyard | Discovered new exit (range 16) 93 | -11/Scrapyard | Entered Materials 302 | -10/Materials | Build established: Mutant 465 | -10/Materials | Discovered new exit (range 7) 475 | -10/Materials | Entered Mines 613 | -10/Mines | Found a damaged Exp. Sensor Array with a note attached 617 | -10/Mines | Found Prototype Device 637 | -10/Mines | Identified Exp. Sensor Array 699 | -10/Mines | Core integrity fell below 50% 821 | -10/Mines | Found the Drone Emporium 834 | -10/Mines | Found Prototype Device 973 | -10/Mines | Discovered new exit (range 5) 984 | -10/Mines | Assisted by bots powering up and referring to "LRC-V3" 1089 | -10/Mines | Received a Rocket Launcher from a helpful Derelict 1180 | -10/Mines | Discovered new exit (range 14) 1247 | -10/Mines | Discovered new exit (range 9) 1410 | -10/Mines | Discovered new exit (range 5) 1511 | -10/Mines | Entered Subcaves 1511 | -10/Subcaves | Accompanied by 3 allies 1775 | -10/Subcaves | Learned Materials security intel 2292 | -10/Subcaves | Visited 4L-MR0's lab 2426 | -10/Subcaves | Discovered new exit (range 11) 2604 | -10/Subcaves | Discovered new exit (range 12) 3061 | -10/Subcaves | Shifting Twisted Machinery released Sub. Machine Gun 3072 | -10/Subcaves | Learned Materials emergency access door positions 3082 | -10/Subcaves | Core integrity fell below 20% 3093 | -10/Subcaves | Discovered new exit (range 12) 3117 | -10/Subcaves | Shifting Twisted Machinery released Sub. Monowheel 3144 | -10/Subcaves | Destroyed by YL-WYP(R) with Subdweller Machine Gun Last Messages --------------- 03041_ Found 37 Matter. Sub. Machine Gun falls loose from the Twisted Machinery. 03069_ S-10 Pest destroyed. 03072_ Acquired derelict log, extracted data. Data stored: Materials emergency access points. 03074_ Lgt. Ion Engine fries itself beyond repair. 03079_ Flight Unit fries itself beyond repair. 03085_ S-10 Pest destroyed. 03085_ Switching to secondary target: S-10 Pest. 03088_ Destroyed Flight Unit. 03088_ S-10 Pest destroyed. 03091_ Acquired 8 matter. 03093_ Acquired 17 matter. 03093_ EXIT=FOUND 03094_ Machine disabled. 03095_ Acquired 1 matter. 03095_ Lgt. Assault Rifle fries itself beyond repair. 03098_ Flight Unit fries itself beyond repair. Sub. Monowheel falls loose from the Twisted Machinery. 03140_ Lgt. Treads destroyed. Map ----- +----------------------------------------------------+ | ??????????????????????# #????????????????#= [ ]# | | ??????????????????????# ##???????????????##"&### | | ??????????????????????## ####????????????###&%#? | | ???????????????????????## #???##########!#&### | | ????????????????????????## #??## # ## !&%&" | | ?????????????????????????## ###?## &&= | | ???????????????????????######???# | | ???????????????????????#""" ???# # ### | | ???????????????????????#" ??## ### #?## | | ???????????????????????#" #### %%& #### | | ??????????????????????##""? ##### | | ??????????????????????#< #???## | | ??????????????????????##" ? "[### #????? | | ???????????????????????#" ### ""##?# #????? | | ???????????????????????#" ??## """#??# ##????? | | ???????????????????????#""" ??## " ""#???###?????? | | ???????????????????????####???# "" ##?? #???????? | | ??????????????????????????????### ### "#???????? | | ???????????????????????###???#### "##??????? | | ???????????????????##### #####""# ""#??????? | | ???????????????????# "" "" "" "#??????? | | ???????????????????# """""###" ##??????? | | ???????????? ????# ?#"= ##???????? | | ??????????? ## ### ## #????????? | | ????????????? " R## # ## #????????? | | ????????????? " " @ ### #????????? | | ????????????? ####"""## # #?## #????????? | | ???????????????????#"""#?####""#???# #????????? | | ???????????????????##""?????"""#????# "???????? | | ????????????????????#"?????#"""#?????# ##??????? | | ????????????????????#??????"#""#??????# ???????? | | ?????????????????????????????""#??????? ##??????? | | ???????????????????????????????????????? ???????? | | ???????????????????????????????????????? ##??????? | | ?????????????????????????????????????????????????? | | ?????????????????????????????????????????????????? | | ?????????????????????????????????????????????????? | | ?????????????????????????????????????????????????? | | ?????????????????????????????????????????????????? | | ?????????????????????????????????????????????????? | | ?????????????????????????????????????????????????? | | ?????????????????????????????????????????????????? | | ?????????????????????????????????????????????????? | | ?????????????????????????????????????????????????? | | ?????????????????????????????????????????????????? | | ?????????????????????????????????????????????????? | | ?????????????????????????????????????????????????? | | ?????????????????????????????????????????????????? | | ?????????????????????????????????????????????????? | | ?????????????????????????????????????????????????? | +----------------------------------------------------+ Best States ------------- Heat Dissipation 25 Energy Generation 15 Energy Capacity 250 Matter Stores 300 Matter Capacity 300 Sight Range 16 Robot Scan Range 20 Terrain Scan Density 10 Utility Shielding 33 Evasion (%) 40 Recoil Reduction 2 Item Schematics ----------------- None Robot Schematics ------------------ None Fabricated ------------ Nothing Alien Tech Used ----------------- None Achievements -------------- None Challenges ------------ None Game ------ Seed GuidanceScanDoublenader Manual? 0 Play Time 00:21:16 Cumulative 9.1 hours Start 2024.04.08 @ 20:16:05 End 2024.04.08 @ 20:41:52 Sessions 1 Manual Loads 0 Difficulty Rogue Special Mode None Game No. 23 Rogue 17 Adventurer 6 Explorer 0 Win Type - Total 0 Types 0/0/0/0/0/0/0/0/0 Lore% 15 Gallery% 17 Achievement% 16 Wizard Run 0 Options --------- Layout 0 ASCII 0 Keyboard 1 Movement Numpad Keybinds 0 Fullscreen 1 Font 18/SmallcapsGlow Map View 76x50 Zoom Use 0% Tactical HUD 1 Map Filters NONE Filters NONE Steam 1 RUN: 609ff38a-d6d0-419e-8d06-fe102f6c6c19